Cogmind - Beta 15 @@@ ROGUE MODE // 2025.06.18 @ 20:28:56 Player: 7604 Result: Destroyed by Y-45 Defender with Beam Rifle Performance ------------- Evolutions (0) 0 Regions Visited (3) 600 Robots Destroyed (37) 185 Value Destroyed (862) 862 Prototype IDs (16) 320 Alien Tech Used (0) 0 Bonus (-50) -50 TOTAL SCORE: 1917 Bonus ------- Friendly Fire -50 Cogmind --------- Core Integrity 0/250 Matter 300/300 Energy 198/200 System Corruption 0% Temperature Cool (9) Movement Rolling (120) Ox1 Location -9/Recycling Parts ------- > --- POWER (1) -------- Subdweller Power Source > --- PROPULSION (2) --- Subdweller Monowheel Subdweller Monowheel > --- UTILITY (2) ------ High-capacity Storage Unit Seismic Detector > --- WEAPON (2) ------- Subdweller Beam Cannon Subdweller Beam Cannon > --- INVENTORY (20) --- Subdweller Power Source Subdweller Power Source Spiked Treads Subdweller Monowheel Scrap Shield Shield Generator Makeshift Hacking Suite Power Bank Subdweller Laser Subdweller Laser Assault Rifle Subdweller Machine Gun Subdweller Machine Gun Subdweller Machine Gun Light Cannon Light Cannon Subdweller Shrapnel Launcher Multitool Makeshift Spear Peak State ------------ > --- POWER ------------ Subdweller Power Source > --- PROPULSION ------- Subdweller Monowheel Subdweller Monowheel > --- UTILITY ---------- High-capacity Storage Unit Seismic Detector > --- WEAPON ----------- Subdweller Laser Subdweller Laser > --- INVENTORY -------- Ion Engine Subdweller Power Source Subdweller Monowheel Heat Sink Seismic Detector Scrap Shield Power Bank Small Laser Subdweller Laser Assault Rifle Subdweller Machine Gun Subdweller Machine Gun Subdweller Machine Gun Light Cannon Light Cannon Subdweller Shrapnel Launcher Multitool Makeshift Spear [Rating: 16] Favorites ----------- Power Subdweller Power Source Engine Subdweller Power Source Propulsion Light Treads Treads Light Treads Leg Aluminum Leg Wheel Subdweller Monowheel Utility Seismic Detector Device Seismic Detector Storage High-capacity Storage Unit Protection Light Armor Plating Weapon Subdweller Beam Cannon Energy Gun Subdweller Laser Energy Cannon Subdweller Beam Cannon Ballistic Gun Subdweller Machine Gun Special Weapon Mining Laser Build | -11 -10 -10 -9 ------- Run | Yrd Mat Sub Rec Slots Evolved . | . . . . Power . | . . . . Propulsion . | . . . . Utility . | . . . . Weapon . | . . . . Parts Attached 29 | 1 6 22 . Power 4 | . . 4 . Engine 4 | . . 4 . Core . | . . . . Reactor . | . . . . Propulsion 9 | . 2 7 . Treads 4 | . 2 2 . Leg . | . . . . Wheel 5 | . . 5 . Hover . | . . . . Flight . | . . . . Utility 6 | 1 2 3 . Device 3 | 1 . 2 . Storage 2 | . 2 . . Processor . | . . . . Hackware . | . . . . Protection 1 | . . 1 . Artifact . | . . . . Weapon 10 | . 2 8 . Energy Gun 3 | . . 3 . Energy Cannon 3 | . . 3 . Ballistic Gun 3 | . 1 2 . Ballistic Cannon . | . . . . Launcher . | . . . . Special Weapon 1 | . 1 . . Impact Weapon . | . . . . Slashing Weapon . | . . . . Piercing Weapon . | . . . . Special Melee Weapon . | . . . . Unidentified Prototypes . | . . . . Parts Lost 10 | . . 10 . Power 1 | . . 1 . Propulsion 5 | . . 5 . Utility 2 | . . 2 . Weapon 2 | . . 2 . Highest Loss Streak 3 | . . 3 . To Critical Strikes 1 | . . 1 . Average Backups 15 | 6 8 17 19 Power 2 | 1 1 2 2 Propulsion 2 | 4 2 1 2 Utility 3 | . 1 3 4 Weapon 7 | 1 3 8 10 Tool/Special . | . . . . Unused Backups 25 | . 7 5 13 Power 5 | . 1 2 2 Propulsion 5 | . 4 . 1 Utility 6 | . 1 1 4 Weapon 8 | . 1 2 5 Tool/Special 1 | . . . 1 Average Slot Usage (%) 99 | . 100 99 100 Engine 14 | . 14 14 14 Treads 16 | . 24 14 . Wheel 10 | . . 13 28 Device 13 | . 14 13 14 Storage 14 | . 14 14 14 Energy Gun 9 | . 14 8 . Energy Cannon 8 | . . 9 28 Ballistic Gun 9 | . 13 9 . Peak Build Rating 16 | 7 8 16 16 Average Rating 12 | 6 7 13 16 On Entrance 9 | 6 7 8 16 Naked Turns . | . . . . Heaviest Build 62 | 12 47 62 62 Greatest Support 40 | 20 40 40 40 Greatest Overweight (x) 3 | . 1 3 1 Average Overweight (x) 1 | . . 1 1 Largest Inventory Capacity 20 | 8 20 20 20 Average Capacity 18 | 8 13 20 20 Most Carried 20 | 7 10 20 20 Average Carried 16 | 6 8 18 20 Final Capacity 20 | 8 20 20 20 Final Carried 20 | 7 10 20 20 Class Distribution -------------------- 60% | Scavenger-Mutant 39% | Mutant Dominant Class ---------------- Mutant | -10/Materials Scavenger-Mutant | -10/Subcaves Scavenger-Mutant | -9/Recycling Resources | -11 -10 -10 -9 ----------- Run | Yrd Mat Sub Rec Matter Collected 804 | 222 167 415 . Remotely . | . . . . Salvage Created 1196 | 26 398 700 72 Parts 104 | 4 35 63 2 Haulers Intercepted 2 | . 2 . . Recyclers Shooed . | . . . . Parts Field Recycled . | . . . . Retrieved Matter . | . . . . Parts Self-Destructed 17 | . . 17 . Prevented . | . . . . Kills | -11 -10 -10 -9 ------- Run | Yrd Mat Sub Rec Combat Hostiles Destroyed 28 | . 11 17 . Guns 16 | . 11 5 . Cannons 12 | . . 12 . Classes Destroyed 10 | 1 5 4 . Builder 1 | . 1 . . Tunneler 2 | 1 1 . . Hauler 2 | . 2 . . Turret 2 | . . 2 . Watcher 2 | . 2 . . Swarmer 12 | . 9 3 . Grunt 3 | . 2 1 . Sentry 1 | . . 1 . Artisan 1 | . . 1 . Subdweller 12 | . . 12 . Best Kill Streak 5 | 1 4 5 . Combat Bots Only 3 | . 3 3 . Max Kills in Single Turn 2 | 1 2 1 . Gunslinging . | . . . . Exploded . | . . . . Melee . | . . . . Uniques/NPCs Destroyed . | . . . . Combat | -11 -10 -10 -9 -------- Run | Yrd Mat Sub Rec Hostile Shots Fired 159 | . 54 104 1 Missed 44 | . 10 34 . Hits 115 | . 44 70 1 Projectile 115 | . 44 70 1 AOE 2 | . . 2 . Critical Strikes 1 | . . 1 . Damage Taken 1624 | . 376 1234 14 Core 258 | . 54 190 14 Absorbed by Shields . | . . . . Core Remaining (%) 100 | 100 . . . Volleys Fired 159 | 4 46 105 4 Largest 2 | 2 2 2 2 Hottest 160 | 60 100 160 160 Shots Fired 267 | 8 84 167 8 Gun 192 | 8 77 107 . Cannon 68 | . . 60 8 Launcher . | . . . . Special 7 | . 7 . . Kinetic 67 | 4 39 24 . Thermal 200 | 4 45 143 8 Explosive . | . . . . Electromagnetic . | . . . . Robot Hit Streak 18 | 3 8 18 3 Robot Miss Streak 5 | 2 5 3 . Penetration Max . | . . . . Secondary Targets 2 | . 2 . . Max Gunslinging Chain 1 | . 1 . . Shots Hit Robots 119 | 5 42 69 3 Core Hits 54 | 2 23 28 1 Critical Kills 1 | . . 1 . Critical Parts Destroyed . | . . . . Critical Strikes 2 | . . 2 . Meltdown 1 | . . 1 . Destroy 1 | . . 1 . Melee Attacks . | . . . . Impact . | . . . . Slashing . | . . . . Piercing . | . . . . Sneak Attacks . | . . . . Combat Hostiles . | . . . . Follow-up Attacks . | . . . . Damage Inflicted 2267 | 58 514 1612 83 Guns 1375 | 58 514 803 . Cannons 892 | . . 809 83 Explosions . | . . . . Melee . | . . . . Ramming . | . . . . Kinetic 531 | 35 271 225 . Thermal 1736 | 23 243 1387 83 Explosive . | . . . . Electromagnetic . | . . . . Impact . | . . . . Slashing . | . . . . Piercing . | . . . . Highest Corruption . | . . . . Average Corruption . | . . . . Corruption Purged . | . . . . Corruption Blocked . | . . . . Overload Shots . | . . . . Overflow Damage 4 | . . . 4 Projectiles 4 | . . . 4 Explosions . | . . . . Melee . | . . . . Knockbacks . | . . . . Impact . | . . . . Kinetic . | . . . . Secondary . | . . . . Self-Inflicted Damage . | . . . . Shots . | . . . . Rammed . | . . . . Targets Rammed . | . . . . Kicked . | . . . . Crushed . | . . . . Highest Temperature 236 | . 60 96 236 Average Temperature 40 | . 25 23 132 Received Heat Transfer 297 | . 30 258 9 Siege Activations . | . . . . Martial Activations . | . . . . Shielding Activations . | . . . . Robots Disrupted . | . . . . Combat Hostiles . | . . . . Robots Corrupted . | . . . . Combat Hostiles . | . . . . Parts Fried . | . . . . Impact Corruptions . | . . . . Robots Melted 1 | . . 1 . Combat Hostiles . | . . . . Parts Melted 7 | . 2 5 . Heat Transferred 2509 | 50 575 1773 111 Parts Sabotaged . | . . . . Parts Stolen . | . . . . Parts Stripped . | . . . . Power Chain Reactions . | . . . . Alert | -11 -10 -10 -9 ------- Run | Yrd Mat Sub Rec Maximum Alert Level . | . . . . Low Security (%) 100 | 100 100 . 100 Level 1 . | . . . . Level 2 . | . . . . Level 3 . | . . . . Level 4 . | . . . . Level 5 . | . . . . High Security . | . . . . Max Security . | . . . . Peak Influence 173 | 5 173 . 30 Initial 15 | . . . 15 Average 38 | 3 45 . 9 Influence Increases 693 | 5 384 215 89 Destroy 0b10 Robot/C 360 | . 220 140 . Destroy 0b10 Robot/NC 40 | 5 30 . 5 Destroy Leader 38 | . 38 . . Successful Hack 48 | . 28 . 20 Select Force Hacks 120 | . 60 . 60 Destroy Structure 12 | . 8 . 4 Lose Combat Pursuer 75 | . . 75 . Influence Decreases 693 | 5 384 182 122 Entered New Map 18 | . . . 18 Time Decay 665 | 5 384 172 104 Lost Part 10 | . . 10 . Squads Dispatched 2 | . 2 . . Investigation 2 | . 2 . . Extermination . | . . . . Reinforcement . | . . . . Assault . | . . . . Garrison . | . . . . Intercept . | . . . . Searches Triggered . | . . . . Construction Impeded . | . . . . Haulers Reinforced . | . . . . Active Scanning Responses . | . . . . Cargo Convoy Interrupts . | . . . . Stealth | -11 -10 -10 -9 --------- Run | Yrd Mat Sub Rec Distress Signals 2 | . 2 . . Communications Jammed . | . . . . Distress Signals . | . . . . Times Spotted 39 | . 17 21 1 Peak Tracking Total 5 | . 5 4 . Tactical Retreats 4 | . . 4 . Traps | -11 -10 -10 -9 ------- Run | Yrd Mat Sub Rec Traps Triggered 1 | . . 1 . Indirectly . | . . . . Trap Hack Attempts . | . . . . Triggered . | . . . . Disarmed . | . . . . Reprogrammed . | . . . . Reused . | . . . . Traps Extracted . | . . . . Installed . | . . . . Triggered . | . . . . Machines | -11 -10 -10 -9 ---------- Run | Yrd Mat Sub Rec Machines Disabled 3 | . . 3 . Max in Single Turn 1 | . . 1 . Machines Repaired . | . . . . Machines Dismantled . | . . . . Machines Sabotaged . | . . . . Overloaded Fab Kills . | . . . . Hacking | -11 -10 -10 -9 --------- Run | Yrd Mat Sub Rec Machines Accessed 18 | . 10 2 6 Terminals 10 | . 7 . 3 Fabricators . | . . . . Repair Stations 1 | . 1 . . Recycling Units 5 | . 2 . 3 Scanalyzers . | . . . . Garrison Access . | . . . . Total Hacks 53 | . 29 5 19 Successful 30 | . 15 5 10 Failed 22 | . 14 . 8 Catastrophic 1 | . 1 . . Database Lockouts 1 | . . . 1 Manual 30 | . 18 . 12 Terminals 34 | . 22 . 12 Fabricators . | . . . . Repair Stations 2 | . 2 . . Recycling Units 12 | . 5 . 7 Scanalyzers . | . . . . Garrison Access . | . . . . Terminal Hacks 12 | . 4 5 3 Record 4 | . . 4 . Part Schematic 1 | . . . 1 Robot Analysis 2 | . 1 . 1 Prototype ID Bank 3 | . 2 . 1 Locate Traps 1 | . 1 . . Proto ID Catalog 1 | . . 1 . Fabricator Hacks . | . . . . Repair Station Hacks 1 | . 1 . . Scan Component 1 | . 1 . . Recycling Unit Hacks 2 | . 1 . 1 Retrieve Components 2 | . 1 . 1 Scanalyzer . | . . . . Garrison Access Hacks . | . . . . Unauthorized Hacks 15 | . 9 . 6 Terminals 11 | . 7 . 4 Botnet 2 | . 1 . 1 Operators 1 | . 1 . . Skim 8 | . 5 . 3 Fabricators . | . . . . Repair Stations . | . . . . Recycling Units 4 | . 2 . 2 Tunnel 4 | . 2 . 2 Scanalyzers . | . . . . Garrison Access . | . . . . Data Cores Recovered . | . . . . Used . | . . . . Hacking Detections 15 | . 9 . 6 Full Trace Events 1 | . . . 1 Feedback Events . | . . . . Feedback Blocked . | . . . . Robot Schematics Acquired . | . . . . Robots Built . | . . . . Authchips . | . . . . Time . | . . . . Total Robot Build Rating . | . . . . Part Schematics Acquired 1 | . . . 1 Parts Built . | . . . . Authchips . | . . . . Time . | . . . . Total Part Build Rating . | . . . . Parts Repaired . | . . . . Time . | . . . . Parts Recycled . | . . . . Recycled Matter . | . . . . Retrieved Matter . | . . . . Retrieved Components 3 | . 1 . 2 Parts Scanalyzed . | . . . . Part Schematics Acquired . | . . . . Parts Damaged . | . . . . Bothacking | -11 -10 -10 -9 ------------ Run | Yrd Mat Sub Rec Used RIF Installer . | . . . . Robots Hacked . | . . . . Non-combat . | . . . . Combat . | . . . . Robot Hacks Applied . | . . . . Relay Couplers Released . | . . . . Fabnet Peak Effective % . | . . . . Robots Rewired . | . . . . Allies Hacked . | . . . . Hacks Repelled . | . . . . Allies | -11 -10 -10 -9 -------- Run | Yrd Mat Sub Rec Total Allies . | . . . . Largest Group . | . . . . Highest-Rated Group . | . . . . Highest-Rated Ally . | . . . . Total Orders . | . . . . Ally Attacks . | . . . . Total Damage . | . . . . Kills . | . . . . Allies Corrupted . | . . . . Allies Melted . | . . . . Intel | -11 -10 -10 -9 ------- Run | Yrd Mat Sub Rec Active Infowar (turns) 5514 | 10 1493 3677 334 Seismic 5514 | 10 1493 3677 334 Robot Analysis Total 2 | . 1 . 1 Derelict Logs Recovered 2 | . . 2 . Drone Launches . | . . . . Drone Recoveries . | . . . . Exploration | -11 -10 -10 -9 ------------- Run | Yrd Mat Sub Rec Turns Passed 5735 | 27 1493 3881 334 Spaces Moved 2878 | 11 626 1976 265 Core . | . . . . Treads 1008 | . 497 511 . Legs 140 | 11 129 . . Wheels 1730 | . . 1465 265 Hover . | . . . . Flight . | . . . . Fastest Speed 120 | 120 120 120 120 Average Speed 154 | 120 164 156 120 Slowest Speed 320 | 120 240 320 120 Overloaded Moves . | . . . . Propulsion Burnouts . | . . . . Robots Hopped . | . . . . Potential Cave-ins . | . . . . Cave-ins Triggered . | . . . . Exploration Rate (%) 65 | 2 93 95 70 Regions Visited 3 Branch Regions 2 Pre-discovered Areas 6 | . 3 1 2 Known Exits Taken 1 | . . 1 . Unknown Exits Taken 2 | 1 1 . . Scrap Searched 12 | . . 12 . Spaces Dug 17 | . 7 6 4 Terrain Destroyed 20 | . 7 8 5 Melee . | . . . . Projectile 20 | . 7 8 5 AOE . | . . . . Terrain Rammed . | . . . . Walls Destroyed . | . . . . Machines Disabled . | . . . . Actions | -11 -10 -10 -9 --------- Run | Yrd Mat Sub Rec Total 3877 | 16 989 2598 274 Wait 744 | . 297 444 3 Move 2875 | 10 625 1975 265 Hop . | . . . . Pick Up 34 | 1 7 25 1 Fast Attach 2 | 1 . 1 . Attach 11 | . . 11 . Detach 1 | . . 1 . Swap 33 | . 8 25 . Drop 18 | . 6 11 1 Fire 159 | 4 46 105 4 Melee . | . . . . Ram . | . . . . Kick . | . . . . Crush . | . . . . Escape Stasis . | . . . . Rewire . | . . . . Trap . | . . . . Miscellaneous . | . . . . Route ------- -11/Scrapyard -10/Materials (discovered 6 exits: *Mat x3 / [*Min x2] / *Sub) -10/Subcaves (discovered 3 exits: [*Mat x2] / *Rec) -9/Recycling (discovered 1 exit: Scr) History --------- Turn | Location | Event 1 | -11/Scrapyard | Discovered new exit (range 2) 28 | -11/Scrapyard | Entered Materials 196 | -10/Materials | Discovered new exit (range 14) 300 | -10/Materials | Build established: Mutant 448 | -10/Materials | Discovered new exit (range 4) 500 | -10/Materials | Discovered new exit (range 6) 724 | -10/Materials | Discovered new exit (range 11) 837 | -10/Materials | Discovered new exit (range 9) 975 | -10/Materials | Discovered new exit (range 13) 1202 | -10/Materials | Learned location of 2 exits from Materials 1245 | -10/Materials | Learned location of Mines (-10) 1297 | -10/Materials | Learned 4 Recycling zone layouts 1330 | -10/Materials | Loaded intel: 20 trap records 1427 | -10/Materials | Loaded intel: 8 terminal locations 1492 | -10/Materials | Identified exit to Materials 1521 | -10/Materials | Entered Subcaves 1522 | -10/Subcaves | Identified exit to Recycling 1634 | -10/Subcaves | A swath of the cavern ceiling suddenly collapsed 1692 | -10/Subcaves | Visited Clippyterm 1699 | -10/Subcaves | Learned Research security intel 1699 | -10/Subcaves | Learned Research machine intel 1709 | -10/Subcaves | Discovered new exit (range 12) 2676 | -10/Subcaves | Build established: Scavenger-Mutant 3144 | -10/Subcaves | Ambushed by Subdwellers from Twisted Machinery 3253 | -10/Subcaves | Discovered new exit (range 11) 3375 | -10/Subcaves | Visited 4L-MR0's lab 3389 | -10/Subcaves | Found Power Bank 3835 | -10/Subcaves | Core integrity fell below 50% 3873 | -10/Subcaves | Lost 3 parts (1p2n) 3976 | -10/Subcaves | Core integrity fell below 20% 4578 | -10/Subcaves | A swath of the cavern ceiling suddenly collapsed 4724 | -10/Subcaves | Learned location of Zion (-6) 4724 | -10/Subcaves | Met a Zionite searching for "candidates" 5001 | -10/Subcaves | Learned Materials stockpile data 5143 | -10/Subcaves | Shifting Twisted Machinery released Sub. Power Source 5402 | -10/Subcaves | Entered Recycling 5403 | -9/Recycling | Identified exit to Scraptown 5736 | -9/Recycling | Destroyed by Y-45 Defender with Beam Rifle Last Messages --------------- 05682_ R-06 Scavenger destroyed. 05687_ R-06 Scavenger collects Com. Wheel. 05691_ R-06 Scavenger collects Sml. Storage Unit. 05700_ Connecting with Terminal... >>Trojan(Skim) Trojan loaded successfully. Testing... Terminal linked with 2 systems. Please expand to 2 more systems! >>Schematic(Med. Armor Plating) Downloading schematic... Med. Armor Plating Rating: 2 Schematic downloaded. >>Prototypes Downloading prototype IDs... Hvy. Ion Engine Imp. Assault Rifle 05736_ Y-45 Defender springs to life. Map ----- +----------------------------------------------------+ | ?????????????????????????????????????????????????? | | ?????????????????????????????????????????????????? | | ?????????????????????????????????????????????????? | | ?????????????????????????????????????????????????? | | ?????????????????????????????????????????????????? | | ?????????????????????????????????????????????????? | | ?????????????????????####????????????????????????? | | #########????????#####"""????????????????????????? | | #????????# ????????????????????????? | | #????????# ????????????????????????? | | #?#####??# """""????????????????????????? | | #?#"""#??# """""????????????????????????? | | #+#########"Y"#### """""????????????????????????? | | ## """""????????????????????????? | | ## """""????????????????????????? | | ## """""????????????????????????? | | ## """""????????????????????????? | | ## ????????????????????????? | | """" #######+##?????#?????????????????? | | """" #???? ###???????????????? | | """" ##### =#???????????????? | | """" ==#???????????????? | | """" ==#???????????????? | | ##### ##### #?????????????????? | | #???# #???# #?????? ??????????? | | #???# #???# @ #????? ??????????? | | # ##### #???# #???# ##### #?????????? | | # #???# #???#/##+##### #?????????? | | # #???# #???# # ##????????? | | # #####+###?# # Y#????????? | | # # #?# # #?????????? | | # # #?# # #?????????? | | # # #?# # #?????????? | | + #?# + #?????????? | | # #?# # +??????? | | # #?# # #?????????? | | + #?# # ###"Y"######??????????? | | #########?########%# T#?"""#???????????????? | | #?????????????## "## ##???##???????????????? | | #??????########""### #?????????????????????? | | ###??????# ##?# #+#############?????????? | | ########## #??# # #?????????? | | + + #??# # #?????????? | | ###! #??# + #?????????? | | #?# #??# # #????????? | | #?# ! %#??# ###### #########????????? | | #?# !% / #??# #?????##????????????????? | | = =#?# [!#??# #???????????????????????? | | #?# ! #?## #???????????????????????? | | #?#######+#### ???????????????????????? | +----------------------------------------------------+ Best States ------------- Heat Dissipation 35 Energy Generation 15 Energy Capacity 250 Matter Stores 300 Matter Capacity 300 Sight Range 16 Terrain Scan Density 10 Armor Coverage 150 Evasion (%) 55 Recoil Reduction 2 Item Schematics ----------------- Med. Armor Plating | -9/Recycling | Hacked Robot Schematics ------------------ None Fabricated ------------ Nothing Repaired ---------- Nothing Alien Tech Used ----------------- None Achievements -------------- None Challenges ------------ None Game ------ Seed NavigationEncryptedSpiker Manual? 0 Play Time 00:27:11 Cumulative 457.8 hours Start 2025.06.18 @ 20:03:51 End 2025.06.18 @ 20:28:56 Sessions 1 Manual Loads 0 Difficulty Rogue Special Mode None Game No. 238 Rogue 175 Adventurer 63 Explorer 0 Win Type - Total 9 Types 8/0/0/1/0/0/0/0/0/0 Lore% 89 Gallery% 80 Achievement% 66 Wizard Run 0 Options --------- Layout 1 ASCII 0 Keyboard 1 Movement Numpad Keybinds 0 Fullscreen 1 Font 24/Terminus Map View 50x35 Zoom Use 0% Tactical HUD 1 Map Filters NONE Filters NONE Steam 1 RUN: b76b9d8b-1de4-4ac8-a002-f8fd7028d89d